fUST/lending_fUST_20240530
["ID","MTS","AMOUNT","RATE_DAILY","PERIOD"]
[328236475,1717083023438,-500.0,0.00104109,120]
[328236476,1717083023464,-500.0,0.00104109,120]
[328236477,1717083023491,-509.0,0.00104109,120]
[328236478,1717083023522,-241.52,0.00104109,120]
[328236479,1717083023552,-571.24,0.00104109,120]
[328236480,1717083023577,-500.0,0.00104109,120]
[328236481,1717083023605,-500.0,0.00104109,120]
[328236482,1717083023631,-833.43,0.00104109,120]
[328236483,1717083023659,-1122.02,0.00104109,120]
[328236484,1717083023687,-500.0,0.00104109,21]
[328236485,1717083023793,-500.0,0.00104109,120]
[328236486,1717083023821,-500.0,0.00104109,7]
[328236487,1717083023849,-440.08,0.00104109,120]
[328236488,1717083023876,-500.0,0.00104109,120]
[328236489,1717083023903,-489.16,0.00104109,120]
[328236490,1717083023931,-1711.4,0.00104109,120]
[328236491,1717083023958,-500.0,0.00104109,120]
[328236492,1717083023986,-500.0,0.00104109,120]
[328236493,1717083024013,-1516.26,0.00104109,120]
[328236494,1717083024039,-260.32,0.00104109,120]
[328236495,1717083024066,-500.0,0.00104109,120]
[328236496,1717083024095,-500.0,0.00104109,120]
[328236497,1717083024121,-500.0,0.00104109,120]
[328236498,1717083024149,-4166.58,0.00104109,120]
[328236499,1717083024178,-500.84,0.00104109,120]
[328236500,1717083024209,-845.1,0.00108276,120]
[328236501,1717083024238,-2754.0,0.00109578,120]
[328236502,1717083024264,-500.0,0.00109579,120]
[328236503,1717083024292,-500.0,0.00109586,120]
[328236504,1717083024319,-526.67,0.00109586,120]
[328236505,1717083024346,-500.0,0.00109586,120]
[328236506,1717083024372,-500.0,0.00109586,120]
[328236507,1717083024397,-638.13183277,0.00109586,120]
[328236508,1717083024423,-500.0,0.00109586,60]
[328236509,1717083024450,-500.0,0.00109586,120]
[328236510,1717083024475,-500.0,0.00109586,120]
[328236511,1717083024501,-450.38,0.00109589,120]
[328236512,1717083024527,-269.51,0.00109589,2]
[328236513,1717083024552,-500.0,0.00109589,120]
[328236514,1717083024579,-197.42,0.00109589,120]
[328236515,1717083024605,-500.0,0.00109589,120]
[328236516,1717083024630,-500.0,0.00109589,120]
[328236517,1717083024655,-500.0,0.00109589,120]
[328236518,1717083024682,-500.0,0.00109589,120]
[328236519,1717083024708,-500.0,0.00109589,120]
[328236520,1717083024736,-170.16,0.00109589,120]
[328236521,1717083024765,-155.04,0.00109589,120]
[328236522,1717083024792,-500.0,0.00109589,120]
[328236523,1717083024823,-1043.41,0.00109589,120]
[328236524,1717083024854,-500.0,0.00109589,120]
[328236525,1717083024880,-500.0,0.00109589,120]
[328236526,1717083024907,-500.0,0.00109589,120]
[328236527,1717083024936,-833.43,0.00109589,120]
[328236528,1717083024966,-1122.02,0.00109589,120]
[328236529,1717083024995,-500.0,0.00109589,21]
[328236530,1717083025027,-500.0,0.00109589,120]
[328236531,1717083025057,-422.08955417,0.00109589,7]
[328236532,1717083025085,-500.0,0.00109589,120]
[328236533,1717083025114,-1711.4,0.00109589,120]
[328236534,1717083025141,-500.0,0.00109589,120]
[328236535,1717083025171,-500.0,0.00109589,120]
[328236536,1717083025197,-1516.26,0.00109589,120]
[328236537,1717083025226,-500.0,0.00109589,120]
[328236538,1717083025259,-500.0,0.00109589,120]
[328236539,1717083025286,-500.0,0.00109589,120]
[328236540,1717083025319,-4166.58,0.00109589,120]
[328236541,1717083025346,-500.84,0.00109589,120]
[328236542,1717083025376,-783.1,0.00110216,120]
[328236543,1717083025405,-500.0,0.00115058,120]
[328236544,1717083025432,-500.0,0.00115059,120]
[328236545,1717083025459,-500.0,0.00115066,120]
[328236546,1717083025485,-500.0,0.00115066,120]
[328236547,1717083025515,-566.31,0.00115066,120]
[328236548,1717083025542,-534.24,0.00115066,60]
[328236549,1717083025571,-500.0,0.00115066,120]
[328236550,1717083025598,-500.0,0.00115066,120]
[328236551,1717083025624,-500.0,0.00115068,120]
[328236552,1717083025648,-500.0,0.00115068,120]
[328236553,1717083025674,-500.0,0.00115068,120]
[328236554,1717083025700,-500.0,0.00115068,120]
[328236555,1717083025726,-500.0,0.00115068,120]
[328236556,1717083025752,-500.0,0.00115068,120]
[328236557,1717083025791,-500.0,0.00115068,120]
[328236558,1717083025948,-1043.41,0.00115068,120]
[328236559,1717083025977,-500.0,0.00115068,120]
[328236560,1717083026007,-500.0,0.00115068,120]
[328236561,1717083026032,-500.0,0.00115068,120]
[328236562,1717083026063,-833.43,0.00115068,120]
[328236563,1717083026094,-1122.02,0.00115068,120]
[328236564,1717083026121,-500.0,0.00115068,21]
[328236565,1717083026147,-500.0,0.00115068,120]
[328236566,1717083026175,-500.0,0.00115068,120]
[328236567,1717083026204,-1711.4,0.00115068,120]
[328236568,1717083026231,-500.0,0.00115068,120]
[328236569,1717083026259,-500.0,0.00115068,120]
[328236570,1717083026284,-1516.26,0.00115068,120]
[328236571,1717083026315,-500.0,0.00115068,120]
[328236572,1717083026344,-310.44,0.00115068,120]
[328236573,1717083026370,-500.0,0.00115068,120]
[328236574,1717083026395,-4166.58,0.00115068,120]
[328236575,1717083026421,-500.84,0.00115068,120]
[328236576,1717083026445,-88888.0,0.00120445,120]
[328236577,1717083026470,-647.95,0.00120537,120]
[328236578,1717083026495,-500.0,0.00120537,120]
[328236579,1717083026523,-500.0,0.00120545,120]
[328236580,1717083026552,-500.0,0.00120545,120]
[328236581,1717083026577,-590.48,0.00120545,120]
[328236582,1717083026602,-500.0,0.00120547,120]
[328236583,1717083026627,-281.65,0.00120547,120]
[328236584,1717083026653,-537.44,0.00120547,120]
[328236585,1717083026677,-500.0,0.00120547,120]
[328236586,1717083026705,-500.0,0.00120547,120]
[328236587,1717083026731,-500.0,0.00120547,120]
[328236588,1717083026762,-500.0,0.00120547,120]
[328236589,1717083026790,-1043.41,0.00120547,120]
[328236590,1717083026820,-500.0,0.00120547,120]
[328236591,1717083026846,-500.0,0.00120547,120]
[328236592,1717083026872,-500.0,0.00120547,120]
[328236593,1717083026898,-833.43,0.00120547,120]
[328236594,1717083026927,-1122.02,0.00120547,120]
[328236595,1717083026953,-500.0,0.00120547,21]
[328236596,1717083026979,-500.0,0.00120547,120]
[328236597,1717083027007,-520.76,0.00120547,120]
[328236598,1717083027034,-1711.4,0.00120547,120]
[328236599,1717083027063,-500.0,0.00120547,120]
[328236600,1717083027093,-500.0,0.00120547,120]
[328236601,1717083027118,-1516.26,0.00120547,120]
[328236602,1717083027144,-500.0,0.00120547,120]
[328236603,1717083027170,-500.0,0.00120547,120]
[328236604,1717083027199,-4166.58,0.00120547,120]
[328236605,1717083027225,-845.1,0.00122829,120]
[328236606,1717083027250,-500.0,0.00126024,120]
[328236607,1717083027276,-500.0,0.00126024,120]
[328236608,1717083027303,-500.0,0.00126026,120]
[328236609,1717083027335,-500.0,0.00126027,120]
[328236610,1717083027365,-500.0,0.00126027,120]
[328236611,1717083027391,-500.0,0.00126027,120]
[328236612,1717083027418,-500.0,0.00126027,120]
[328236613,1717083027445,-500.0,0.00126027,120]
[328236614,1717083027472,-1043.41,0.00126027,120]
[328236615,1717083027499,-500.0,0.00126027,120]
[328236616,1717083027530,-500.0,0.00126027,120]
[328236617,1717083027558,-500.0,0.00126027,120]
[328236618,1717083027582,-833.43,0.00126027,120]
[328236619,1717083027611,-1122.02,0.00126027,120]
[328236620,1717083027637,-500.0,0.00126027,21]
[328236621,1717083027663,-500.0,0.00126027,120]
[328236622,1717083027689,-1711.4,0.00126027,120]
[328236623,1717083027717,-500.0,0.00126027,120]
[328236624,1717083027744,-500.0,0.00126027,120]
[328236625,1717083027769,-1516.26,0.00126027,120]
[328236626,1717083027796,-500.0,0.00126027,120]
[328236627,1717083027821,-500.0,0.00126027,120]
[328236628,1717083027922,-4166.58,0.00126027,120]
[328236629,1717083027948,-585.12,0.00131504,120]
[328236630,1717083027974,-500.0,0.00131504,120]
[328236631,1717083028000,-474.2912,0.00131506,120]
[328236632,1717083028030,-500.0,0.00131506,120]
[328236633,1717083028055,-500.0,0.00131506,120]
[328236634,1717083028082,-500.0,0.00131506,120]
[328236635,1717083028108,-500.0,0.00131506,120]
[328236636,1717083028135,-1043.41,0.00131506,120]
[328236637,1717083028162,-500.0,0.00131506,120]
[328236638,1717083028188,-500.0,0.00131506,120]
[328236639,1717083028213,-238.24,0.00131506,120]
[328236640,1717083028237,-833.43,0.00131506,120]
[328236641,1717083028264,-1122.02,0.00131506,120]
[328236642,1717083028290,-500.0,0.00131506,21]
[328236643,1717083028317,-160.8,0.00131506,120]
[328236644,1717083028343,-1711.4,0.00131506,120]
[328236645,1717083028369,-500.0,0.00131506,120]
[328236646,1717083028396,-500.0,0.00131506,120]
[328236647,1717083028421,-1516.26,0.00131506,120]
[328236648,1717083028447,-187.52,0.00131506,120]
[328236649,1717083028474,-500.0,0.00131506,120]
[328236650,1717083028499,-4166.58,0.00131506,120]
[328236651,1717083028525,-783.1,0.00132448,120]
[328236652,1717083028552,-2754.0,0.00136975,120]
[328236653,1717083028577,-500.0,0.00136983,120]
[328236654,1717083028603,-500.0,0.00136985,120]
[328236655,1717083028630,-726.25,0.00136986,120]
[328236656,1717083028655,-511.31325426,0.00136986,120]
[328236657,1717083028680,-500.0,0.00136986,120]
[328236658,1717083028704,-500.0,0.00136986,120]
[328236659,1717083028730,-500.0,0.00136986,120]
[328236660,1717083028757,-500.0,0.00136986,120]
[328236661,1717083028783,-1043.41,0.00136986,120]
[328236662,1717083028810,-500.0,0.00136986,120]
[328236663,1717083028836,-500.0,0.00136986,120]
[328236664,1717083028861,-833.43,0.00136986,120]
[328236665,1717083028890,-1122.02,0.00136986,120]
[328236666,1717083028922,-500.0,0.00136986,21]
[328236667,1717083028952,-1711.4,0.00136986,120]
[328236668,1717083028979,-500.0,0.00136986,120]
[328236669,1717083029009,-500.0,0.00136986,120]
[328236670,1717083029038,-1516.26,0.00136986,120]
[328236671,1717083029068,-150.1,0.00136986,120]
[328236672,1717083029097,-4166.58,0.00136986,120]
[328236673,1717083029124,-845.1,0.00137382,120]
[328236674,1717083029152,-179.15,0.00142463,120]
[328236675,1717083029180,-415.24,0.00142465,120]
[328236676,1717083029207,-500.0,0.00142465,120]
[328236677,1717083029235,-500.0,0.00142465,120]
[328236678,1717083029264,-500.0,0.00142465,120]
[328236679,1717083029292,-1043.41,0.00142465,120]
[328236680,1717083029325,-500.0,0.00142465,120]
[328236681,1717083029354,-500.0,0.00142465,120]
[328236682,1717083029382,-833.43,0.00142465,120]
[328236683,1717083029412,-1122.02,0.00142465,120]
[328236684,1717083029444,-500.0,0.00142465,21]
[328236685,1717083029473,-1711.4,0.00142465,120]
[328236686,1717083029502,-500.0,0.00142465,120]
[328236687,1717083029532,-500.0,0.00142465,120]
[328236688,1717083029558,-1516.26,0.00142465,120]
[328236689,1717083029584,-4166.58,0.00142465,120]
[328236690,1717083029613,-500.0,0.00147944,120]
[328236691,1717083029641,-500.0,0.00147945,120]
[328236692,1717083029667,-500.0,0.00147945,120]
[328236693,1717083029693,-500.0,0.00147945,120]
[328236694,1717083029720,-1043.41,0.00147945,120]
[328236695,1717083029747,-500.0,0.00147945,120]
[328236696,1717083029835,-500.0,0.00147945,120]
[328236697,1717083029875,-833.43,0.00147945,120]
[328236698,1717083029904,-1122.02,0.00147945,120]
[328236699,1717083029932,-500.0,0.00147945,21]
[328236700,1717083029958,-1711.4,0.00147945,120]
[328236701,1717083029985,-500.0,0.00147945,120]
[328236702,1717083030016,-500.0,0.00147945,120]
[328236703,1717083030042,-1516.26,0.00147945,120]
[328236704,1717083030070,-4166.58,0.00147945,120]
[328236705,1717083030098,-84570.1437553,0.0015,120]
[328236706,1717083030174,500.84,0.00120547,120]
[328236707,1717083030204,600.0,0.0005335,2]
[328236708,1717083030239,500.84,0.00126027,120]
[328236709,1717083030271,500.84,0.00131506,120]
[328236710,1717083030301,615.67014403,0.000539,2]
[328236711,1717083030331,2240.97827925,0.00087669,2]
[328236712,1717083030362,500.84,0.00136986,120]
[328236713,1717083030392,500.84,0.00142465,120]
[328236714,1717083030422,500.84,0.00147945,120]
[328236715,1717083030462,154.93802479,0.00087669,4]
[328236716,1717083030550,1309.38,0.0009314,3]
[328236717,1717083030583,153.0,0.00061648,60]
[328236718,1717083030613,153.0,0.00061648,30]
[328236719,1717083030646,291.9275846,0.00061648,2]
[328236720,1717083030736,1545.03926107,0.00038,120]
[328236721,1717083030781,3373.10522933,0.0005,60]
[328236722,1717083030846,1091.15,0.00126017,3]
[328236723,1717083030892,154.93802479,0.0005,30]
[328236728,1717083031686,500.0,0.00082191,120]
[328236760,1717083032220,-726.25,0.00150684,120]
[328236761,1717083032229,-500.0,0.00153424,120]
[328236762,1717083032238,-500.0,0.00153424,120]
[328236763,1717083032247,-1043.41,0.00153424,120]
[328236764,1717083032256,-348.3782419,0.00153424,120]
[328237178,1717083036464,500.0,0.00082191,120]
[328237219,1717083036839,500.0,0.00087671,120]
[328237250,1717083037132,500.0,0.0009315,120]
[328237280,1717083037417,500.0,0.0009863,120]
[328237309,1717083037680,500.0,0.00104109,120]
[328237341,1717083037981,500.0,0.00109589,120]
[328237345,1717083038011,-500.0,0.00153424,120]
[328237347,1717083038024,-833.43,0.00153424,120]
[328237349,1717083038033,-832.987783,0.00153424,120]
[328237376,1717083038292,500.0,0.00115068,120]
[328237406,1717083038575,535.9017581,0.00120547,120]
[328237517,1717083040690,500.0,0.00082191,120]
[328237521,1717083040724,218.72,0.00082191,120]
[328237538,1717083041084,500.0,0.00087671,120]
[328237548,1717083041263,500.0,0.0009315,120]
[328237549,1717083041597,500.0,0.0009863,120]
[328237550,1717083041825,-289.032217,0.00153424,120]
[328237551,1717083041835,-500.0,0.00153424,21]
[328237552,1717083041845,-492.2867535,0.00153424,120]
[328237553,1717083041856,-1219.1132465,0.00153424,120]
[328237554,1717083041865,-500.0,0.00153424,120]
[328237555,1717083041875,-500.0,0.00153424,120]
[328237556,1717083041884,-1516.26,0.00153424,120]
[328237557,1717083041894,-4166.58,0.00153424,120]
[328237558,1717083041903,-500.84,0.00153424,120]
[328237559,1717083041913,-500.0,0.00158904,120]
[328237560,1717083041923,-1000.3905335,0.00158904,120]
[328237561,1717083041935,-43.0194665,0.00158904,120]
[328237562,1717083041944,-500.0,0.00158904,120]
[328237563,1717083041954,-833.43,0.00158904,120]
[328237564,1717083041963,-1122.02,0.00158904,120]
[328237565,1717083041973,-638.8,0.00158904,21]
[328237566,1717083041983,-709.92491453,0.00158904,120]
[328237567,1717083041994,-1001.47508547,0.00158904,120]
[328237568,1717083042004,-500.0,0.00158904,120]
[328237569,1717083042019,-500.0,0.00158904,120]
[328237570,1717083042028,-1516.26,0.00158904,120]
[328237571,1717083042038,-2893.16098108,0.00158904,120]
[328237572,1717083042050,-598.07452453,0.00158904,120]
[328237573,1717083042084,500.0,0.00104109,120]
[328237574,1717083042118,2524.5,0.00093148,120]
[328237575,1717083042131,-675.34449439,0.00158904,120]
[328237576,1717083042141,-500.84,0.00158904,120]
[328237577,1717083042150,-726.25,0.00164383,120]
[328237578,1717083042160,-511.27163864,0.00164383,120]
[328237580,1717083042170,-500.0,0.00164383,120]
[328237581,1717083042179,-1043.41,0.00164383,120]
[328237582,1717083042188,-500.0,0.00164383,120]
[328237583,1717083042198,-833.43,0.00164383,120]
[328237584,1717083042207,-1122.02,0.00164383,120]
[328237585,1717083042217,-1711.4,0.00164383,120]
[328237586,1717083042226,-93.20186697,0.00164383,120]
[328237587,1717083042256,500.0,0.00109589,120]
[328237589,1717083042435,2524.5,0.00120546,120]
[328237593,1717083042829,2524.5,0.00147943,120]
[328237616,1717083043267,500.0,0.00115068,120]
[328237661,1717083045369,1545.03926107,0.00038,120]
[328237662,1717083045401,500.0,0.00120547,120]
[328237704,1717083046211,-274.84968436,0.0005,30]
[328237707,1717083046221,-3373.10522933,0.0005,60]
[328237709,1717083046230,-500.0,0.00126027,120]
[328237712,1717083046239,-406.79813303,0.00164383,120]
[328237715,1717083046249,-500.0,0.00164383,120]
[328237717,1717083046258,-1516.26,0.00164383,120]
[328237720,1717083046267,-4166.58,0.00164383,120]
[328237722,1717083046277,-500.84,0.00164383,120]
[328237725,1717083046286,-500.0,0.00169863,120]
[328237727,1717083046295,-1043.41,0.00169863,120]
[328237730,1717083046305,-500.0,0.00169863,120]
[328237732,1717083046314,-833.43,0.00169863,120]
[328237735,1717083046327,-1122.02,0.00169863,120]
[328237738,1717083046336,-1711.4,0.00169863,120]
[328237741,1717083046346,-500.0,0.00169863,120]
[328237743,1717083046355,-500.0,0.00169863,120]
[328237745,1717083046364,-1516.26,0.00169863,120]
[328237747,1717083046373,-4166.58,0.00169863,120]
[328237749,1717083046382,-500.84,0.00169863,120]
[328237751,1717083046391,-2524.5,0.0017534,120]
[328237753,1717083046400,-500.0,0.00175342,120]
[328237755,1717083046409,-1043.41,0.00175342,120]
[328237756,1717083046419,-585.16,0.00175342,120]
[328237757,1717083046430,-833.43,0.00175342,120]
[328237758,1717083046439,-1122.02,0.00175342,120]
[328237760,1717083046448,-1711.4,0.00175342,120]
[328237762,1717083046457,-500.0,0.00175342,120]
[328237765,1717083046467,-500.0,0.00175342,120]
[328237766,1717083046476,-1516.26,0.00175342,120]
[328237768,1717083046485,-4166.58,0.00175342,120]
[328237770,1717083046494,-500.84,0.00175342,120]
[328237772,1717083046504,-726.25,0.00178082,120]
[328237774,1717083046514,-500.0,0.00180821,120]
[328237775,1717083046523,-1043.41,0.00180821,120]
[328237776,1717083046533,-833.43,0.00180821,120]
[328237777,1717083046542,-1122.02,0.00180821,120]
[328237778,1717083046552,-1711.4,0.00180821,120]
[328237779,1717083046561,-500.0,0.00180821,120]
[328237780,1717083046571,-500.0,0.00180821,120]
[328237781,1717083046580,-1516.26,0.00180821,120]
[328237782,1717083046589,-4166.58,0.00180821,120]
[328237783,1717083046599,-500.84,0.00180821,120]
[328237784,1717083046608,-500.0,0.00186301,120]
[328237785,1717083046617,-1043.41,0.00186301,120]
[328237786,1717083046627,-833.43,0.00186301,120]
[328237787,1717083046636,-1122.02,0.00186301,120]
[328237788,1717083046645,-1711.4,0.00186301,120]
[328237789,1717083046654,-391.78,0.00186301,120]
[328237790,1717083046663,-325.0,0.00186301,120]
[328237791,1717083046672,-1516.26,0.00186301,120]
[328237792,1717083046681,-4166.58,0.00186301,120]
[328237793,1717083046691,-500.84,0.00186301,120]
[328237794,1717083046700,-6756.0,0.0019,120]
[328237795,1717083046709,-726.25,0.0019178,120]
[328237796,1717083046719,-500.0,0.0019178,120]
[328237797,1717083046727,-1043.41,0.0019178,120]
[328237798,1717083046737,-833.43,0.0019178,120]
[328237799,1717083046746,-1122.02,0.0019178,120]
[328237800,1717083046755,-1711.4,0.0019178,120]
[328237801,1717083046764,-1516.26,0.0019178,120]
[328237802,1717083046773,-4166.58,0.0019178,120]
[328237803,1717083046782,-500.84,0.0019178,120]
[328237804,1717083046791,-10000.0,0.00195,120]
[328237805,1717083046801,-510.0,0.0019726,120]
[328237806,1717083046810,-510.0,0.0019726,120]
[328237807,1717083046821,-510.0,0.0019726,120]
[328237808,1717083046830,-184.90519508,0.0019726,120]
[328237809,1717083046840,-500.0,0.0019726,120]
[328237810,1717083046849,-1043.41,0.0019726,120]
[328237811,1717083046859,-833.43,0.0019726,120]
[328237812,1717083046869,-1122.02,0.0019726,120]
[328237813,1717083046878,-1711.4,0.0019726,120]
[328237814,1717083046887,-1516.26,0.0019726,120]
[328237815,1717083046897,-4166.58,0.0019726,120]
[328237816,1717083046906,-500.84,0.0019726,120]
[328237817,1717083046916,-1377.0,0.002,120]
[328237818,1717083046926,-200.0,0.002,120]
[328237819,1717083046935,-909.29,0.00202729,3]
[328237820,1717083046944,-2524.5,0.00202737,120]
[328237821,1717083046954,-500.0,0.00202739,120]
[328237822,1717083046964,-1043.41,0.00202739,120]
[328237823,1717083046973,-833.43,0.00202739,120]
[328237824,1717083046982,-1122.02,0.00202739,120]
[328237825,1717083046992,-1711.4,0.00202739,120]
[328237826,1717083047002,-1516.26,0.00202739,120]
[328237827,1717083047016,-4166.58,0.00202739,120]
[328237828,1717083047026,-500.84,0.00202739,120]
[328237829,1717083047036,-726.25,0.00205479,120]
[328237830,1717083047047,-489.04,0.00208219,120]
[328237831,1717083047056,-1043.45000001,0.00208219,120]
[328237832,1717083047067,-833.45644958,0.00208219,120]
[328237833,1717083047145,-1122.02,0.00208219,120]
[328237834,1717083047155,-1711.44,0.00208219,120]
[328237835,1717083047165,-1516.34,0.00208219,120]
[328237836,1717083047174,-4166.66,0.00208219,120]
[328237837,1717083047184,-501.0,0.00208219,120]
[328237838,1717083047193,-154.93802479,0.00219166,2]
[328237839,1717083047203,-726.25,0.00219178,120]
[328237840,1717083047212,-2524.5,0.00230135,120]
[328237841,1717083047221,-726.25,0.00232876,120]
[328237842,1717083047230,-726.25,0.00246575,120]
[328237843,1717083047239,-2524.5,0.00257532,120]
[328237844,1717083047249,-10000.0,0.0026,120]
[328237845,1717083047258,-726.25,0.00260273,120]
[328237846,1717083047267,-6011.0,0.00265,120]
[328237847,1717083047276,-5000.0,0.0027,120]
[328237848,1717083047285,-500.0,0.0027,120]
[328237849,1717083047294,-726.25,0.00273972,120]
[328237850,1717083047303,-151.0,0.00273973,120]
[328237851,1717083047312,-151.0,0.00273973,120]
[328237852,1717083047323,-151.0,0.00273973,120]
[328237853,1717083047332,-151.0,0.00273973,120]
[328237854,1717083047341,-151.0,0.00273973,120]
[328237855,1717083047350,-151.0,0.00273973,120]
[328237856,1717083047358,-157.461986,0.00273973,120]
[328237857,1717083047367,-157.461986,0.00273973,120]
[328237858,1717083047376,-157.461986,0.00273973,120]
[328237859,1717083047385,-157.461986,0.00273973,120]
[328237860,1717083047393,-157.461986,0.00273973,120]
[328237861,1717083047402,-157.461986,0.00273973,120]
[328237862,1717083047410,-157.461986,0.00273973,120]
[328237863,1717083047418,-157.461986,0.00273973,120]
[328237864,1717083047426,-157.461986,0.00273973,120]
[328237865,1717083047435,-157.461986,0.00273973,120]
[328237866,1717083047444,-157.461986,0.00273973,120]
[328237867,1717083047452,-157.461986,0.00273973,120]
[328237868,1717083047461,-157.461986,0.00273973,120]
[328237869,1717083047470,-157.461986,0.00273973,120]
[328237870,1717083047478,-157.461986,0.00273973,120]
[328237871,1717083047487,-157.461986,0.00273973,120]
[328237872,1717083047496,-157.461986,0.00273973,120]
[328237873,1717083047506,-157.461986,0.00273973,120]
[328237874,1717083047516,-157.461986,0.00273973,120]
[328237875,1717083047525,-151.0,0.00273973,120]
[328237876,1717083047534,-151.0,0.00273973,120]
[328237877,1717083047543,-245.474859,0.00273973,120]
[328237878,1717083047551,-151.0,0.00273973,120]
[328237879,1717083047560,-151.0,0.00273973,120]
[328237880,1717083047571,-151.0,0.00273973,120]
[328237881,1717083047580,-151.0,0.00273973,120]
[328237882,1717083047589,-151.0,0.00273973,120]
[328237883,1717083047598,-151.0,0.00273973,120]
[328237884,1717083047607,-151.0,0.00273973,120]
[328237885,1717083047615,-151.0,0.00273973,120]
[328237886,1717083047624,-151.0,0.00273973,120]
[328237887,1717083047633,-151.0,0.00273973,120]
[328237888,1717083047642,-151.0,0.00273973,120]
[328237889,1717083047650,-151.0,0.00273973,120]
[328237890,1717083047659,-151.0,0.00273973,120]
[328237891,1717083047668,-151.0,0.00273973,120]
[328237892,1717083047676,-151.0,0.00273973,120]
[328237893,1717083047685,-151.0,0.00273973,120]
[328237894,1717083047694,-151.0,0.00273973,120]
[328237895,1717083047703,-151.0,0.00273973,120]
[328237896,1717083047711,-160.256295,0.00273973,120]
[328237897,1717083047721,-151.0,0.00273973,2]
[328237898,1717083047730,-151.0,0.00273973,120]
[328237899,1717083047738,-151.0,0.00273973,120]
[328237900,1717083047746,-151.0,0.00273973,120]
[328237901,1717083047754,-151.0,0.00273973,120]
[328237902,1717083047763,-151.0,0.00273973,120]
[328237903,1717083047772,-151.0,0.00273973,120]
[328237904,1717083047780,-151.0,0.00273973,120]
[328237905,1717083047789,-151.0,0.00273973,120]
[328237906,1717083047798,-151.0,0.00273973,120]
[328237907,1717083047807,-151.0,0.00273973,120]
[328237908,1717083047815,-151.0,0.00273973,120]
[328237909,1717083047826,-151.0,0.00273973,120]
[328237910,1717083047835,-151.0,0.00273973,120]
[328237911,1717083047843,-151.0,0.00273973,120]
[328237912,1717083047853,-252.147166,0.00273973,120]
[328237913,1717083047861,-151.0,0.00273973,120]
[328237914,1717083047870,-151.0,0.00273973,120]
[328237915,1717083047879,-151.0,0.00273973,120]
[328237916,1717083047887,-151.0,0.00273973,120]
[328237917,1717083047896,-151.0,0.00273973,120]
[328237918,1717083047905,-151.0,0.00273973,120]
[328237919,1717083047914,-151.0,0.00273973,120]
[328237920,1717083047923,-151.0,0.00273973,120]
[328237921,1717083047932,-151.0,0.00273973,120]
[328237922,1717083047941,-151.0,0.00273973,120]
[328237923,1717083047950,-151.0,0.00273973,120]
[328237924,1717083047959,-151.0,0.00273973,120]
[328237925,1717083047967,-151.0,0.00273973,120]
[328237926,1717083047975,-151.0,0.00273973,120]
[328237927,1717083047985,-151.0,0.00273973,120]
[328237928,1717083047996,-151.0,0.00273973,120]